bitfinex/quotes_BTCUSD_20241111
["timestamp","ask_amount","ask_price","bid_price","bid_amount"]
[1731358217962,0.0819,87108.0,87084.0,0.001]
[1731358218312,0.17265988,87098.0,87086.0,0.1]
[1731358218526,0.004,87103.0,87088.0,0.27265988]
[1731358218818,0.04766362,87107.0,87088.0,0.27265988]
[1731358218819,0.04766362,87107.0,87094.0,0.001]
[1731358219014,0.00422669,87116.0,87094.0,0.001]
[1731358219015,0.17265988,87112.0,87096.0,0.1]
[1731358219224,0.17265988,87112.0,87098.0,0.1]
[1731358219438,0.004,87115.0,87100.0,0.1]
[1731358219642,0.19962534,87113.0,87102.0,0.1]
[1731358219849,0.004,87120.0,87103.0,0.17265988]
[1731358219987,0.023,87121.0,87106.0,0.001]
[1731358220623,0.023,87114.0,87104.0,0.098]
[1731358220827,0.023,87114.0,87105.0,0.17265988]
[1731358221031,0.023,87114.0,87104.0,0.098]
[1731358221232,0.023,87106.0,87081.0,0.001]
[1731358221444,0.22262534,87100.0,87098.0,0.17265988]
[1731358221823,0.023,87115.0,87099.0,0.11994075]
[1731358222025,0.023,87112.0,87099.0,0.11994075]
[1731358222225,0.023,87115.0,87100.0,0.17265988]
[1731358222449,0.023,87115.0,87102.0,0.001]
[1731358222661,0.023,87115.0,87100.0,0.29260063]
[1731358222662,0.023,87117.0,87106.0,0.001]
[1731358222861,0.004,87126.0,87106.0,0.001]
[1731358222862,0.023,87121.0,87106.0,0.001]
[1731358224237,0.023,87121.0,87110.0,0.1]
[1731358224448,0.19962534,87130.0,87112.0,0.1]
[1731358224666,0.15574782,87134.0,87120.0,0.1]
[1731358224887,0.15574782,87134.0,87123.0,0.17865988]
[1731358225152,0.15574782,87134.0,87123.0,0.22594075]
[1731358226315,0.17265988,87133.0,87123.0,0.22594075]
[1731358226539,0.15574782,87134.0,87123.0,0.22594075]
[1731358229046,0.15574782,87134.0,87123.0,0.22094075]
[1731358229253,0.15574782,87134.0,87123.0,0.29994075]
[1731358229868,0.15574782,87134.0,87123.0,0.29894075]
[1731358230053,0.15574782,87134.0,87123.0,0.21994075]
[1731358231648,0.15574782,87134.0,87123.0,0.22094075]
[1731358231870,0.15574782,87134.0,87133.0,0.006]
[1731358232069,0.15574782,87134.0,87133.0,0.22594075]
[1731358232297,0.15574782,87134.0,87133.0,0.27484075]
[1731358232427,0.15574782,87134.0,87133.0,0.27593823]
[1731358232613,0.02764782,87134.0,87133.0,0.35703823]
[1731358233019,0.00950744,87134.0,87133.0,0.35903823]
[1731358233228,0.0002,87149.0,87148.0,0.006]
[1731358233461,0.0002,87149.0,87148.0,0.2285827]
[1731358233903,0.0002,87149.0,87148.0,0.2265827]
[1731358234479,0.0002,87149.0,87148.0,0.3090768]
[1731358234761,0.000852,87155.0,87154.0,0.006]
[1731358234973,0.000852,87155.0,87154.0,0.22594075]
[1731358235180,0.025,87166.0,87156.0,0.001]
[1731358235399,0.00022669,87186.0,87172.0,0.006]
[1731358235633,0.17265988,87182.0,87172.0,0.22594075]
[1731358235844,0.00022669,87186.0,87172.0,0.30449819]
[1731358236286,0.00022669,87204.0,87199.0,0.001]
[1731358236486,0.17265988,87201.0,87199.0,0.22094075]
[1731358236685,0.00022669,87204.0,87199.0,0.22094075]
[1731358236686,0.00570102,87200.0,87199.0,0.22094075]
[1731358236897,0.00022669,87204.0,87203.0,0.006]
[1731358237092,0.00022669,87204.0,87203.0,0.53349042]
[1731358237309,0.00022669,87235.0,87226.0,0.001]
[1731358237714,0.00022669,87235.0,87226.0,0.00071551]
[1731358238014,0.004,87233.0,87226.0,0.00071551]
[1731358238153,0.004,87234.0,87214.0,0.17265988]
[1731358238365,0.0232058,87237.0,87226.0,0.1]
[1731358238618,0.004,87236.0,87226.0,0.21994075]
[1731358238791,0.004,87236.0,87226.0,0.22063924]
[1731358239215,0.0232058,87237.0,87226.0,0.22063924]
[1731358239216,0.004,87231.0,87226.0,0.10069849]
[1731358239406,0.0108,87227.0,87226.0,0.00069849]
[1731358239612,0.0128,87227.0,87226.0,0.00069849]
[1731358239787,0.0128,87227.0,87206.0,0.17265988]
[1731358239788,0.004,87207.0,87206.0,0.17265988]
[1731358240191,0.004,87207.0,87206.0,0.17628044]
[1731358240395,0.009,87216.0,87206.0,0.12356131]
[1731358240620,0.004,87209.0,87206.0,0.12356131]
[1731358241167,0.004,87210.0,87206.0,0.12356131]
[1731358241404,1.5026512,87227.0,87206.0,0.12356131]
[1731358241405,0.004,87216.0,87207.0,0.29260063]
[1731358241620,0.004,87216.0,87208.0,0.1]
[1731358241828,0.004,87216.0,87209.0,0.11994075]
[1731358242030,0.004,87218.0,87210.0,0.27265988]
[1731358242237,0.004,87216.0,87212.0,0.1]
[1731358242464,0.005,87224.0,87212.0,0.1]
[1731358242465,0.004,87215.0,87212.0,0.1]
[1731358242839,0.004,87207.0,87206.0,0.00362056]
[1731358243044,0.004,87207.0,87198.0,0.1]
[1731358243259,0.004,87207.0,87200.0,0.1]
[1731358243418,0.004,87207.0,87202.0,0.1]
[1731358243621,0.004,87207.0,87203.0,0.00296786]
[1731358243831,0.005,87212.0,87207.0,0.1]
[1731358244098,0.004,87221.0,87209.0,0.1]
[1731358244292,0.004,87221.0,87208.0,0.12367603]
[1731358244293,0.004,87219.0,87211.0,0.1]
[1731358244507,0.004,87219.0,87213.0,0.1]
[1731358244731,0.0826,87235.0,87215.0,0.1]
[1731358244732,0.0026512,87227.0,87215.0,0.1]
[1731358244934,0.0026512,87227.0,87224.0,0.1]
[1731358245150,0.0026512,87227.0,87219.0,0.001]
[1731358245151,0.0026512,87227.0,87226.0,0.1]
[1731358245375,0.0026512,87227.0,87226.0,0.21994075]
[1731358245573,0.0026512,87227.0,87226.0,0.22072929]
[1731358245957,0.0026512,87227.0,87226.0,0.22402164]
[1731358246164,0.0026512,87227.0,87226.0,0.22072929]
[1731358246686,0.0026512,87227.0,87226.0,0.22302165]
[1731358246926,0.0026512,87227.0,87226.0,0.52927873]
[1731358247131,0.0026512,87227.0,87226.0,0.61218637]
[1731358247339,0.0182058,87237.0,87236.0,0.001]
[1731358248387,0.0182058,87237.0,87236.0,0.12094075]
[1731358248596,0.0182058,87237.0,87236.0,0.22594075]
[1731358248800,0.0182058,87237.0,87236.0,0.22676681]
[1731358249563,0.17265988,87263.0,87262.0,0.001]
[1731358249779,0.17265988,87263.0,87262.0,0.22094075]
[1731358249975,0.00491693,87270.0,87269.0,0.001]
[1731358250175,0.00491693,87270.0,87269.0,0.21994075]
[1731358250376,0.00491693,87270.0,87269.0,0.22145129]
[1731358250640,0.00491693,87270.0,87269.0,0.22013161]
[1731358250819,0.00469024,87270.0,87269.0,0.22094075]
[1731358251442,0.00469024,87270.0,87269.0,0.21994075]
[1731358251664,0.09651012,87296.0,87270.0,0.1]
[1731358251833,0.17265988,87295.0,87280.0,0.1]
[1731358252006,0.17265988,87295.0,87275.0,0.005]
[1731358252007,0.17265988,87295.0,87282.0,0.1]
[1731358252208,0.0466,87299.0,87283.0,0.11994075]
[1731358252410,0.0466,87299.0,87284.0,0.00229088]
[1731358252611,0.0466,87299.0,87285.0,0.11994075]
[1731358253199,0.17351118,87304.0,87286.0,0.0022909]
[1731358253367,0.0008513,87304.0,87287.0,0.11994075]
[1731358253584,0.0008513,87304.0,87287.0,0.12223155]
[1731358253999,0.0008513,87304.0,87287.0,0.11994075]
[1731358254000,0.17351118,87304.0,87287.0,0.11994075]
[1731358254128,0.0008513,87304.0,87287.0,0.11994075]
[1731358254329,0.0008513,87304.0,87288.0,0.12223148]
[1731358254536,0.0008513,87304.0,87294.0,0.17265988]
[1731358254742,0.0008513,87304.0,87296.0,0.1]
[1731358254938,0.0008513,87304.0,87296.0,0.21994075]
[1731358255190,0.0008513,87304.0,87296.0,0.22494075]
[1731358255567,0.0008513,87304.0,87296.0,0.22723112]
[1731358255769,0.0008513,87304.0,87296.0,0.22723098]
[1731358256175,0.0008513,87304.0,87296.0,0.22994075]
[1731358257074,0.0008513,87304.0,87299.0,0.01]
[1731358257277,0.01,87344.0,87299.0,0.01]
[1731358257278,0.01454283,87367.0,87337.0,0.005]
[1731358257484,0.01454283,87367.0,87348.0,0.005]
[1731358257485,0.17265988,87353.0,87348.0,0.005]
[1731358257702,0.30525708,87362.0,87346.0,0.1]
[1731358258122,0.005,87366.0,87314.0,0.005]
[1731358258123,0.30525708,87349.0,87347.0,0.17643058]
[1731358258531,0.35195708,87360.0,87348.0,0.29260063]
[1731358258733,0.17265988,87349.0,87347.0,0.0037707]
[1731358258980,0.17265988,87349.0,87348.0,0.17265988]
[1731358258981,0.30525708,87349.0,87348.0,0.17265988]
[1731358259271,0.30525708,87349.0,87340.0,0.17265988]
[1731358259381,0.30525708,87349.0,87348.0,0.00376455]
[1731358259594,0.30525708,87349.0,87322.0,0.17265988]
[1731358259800,0.30525708,87335.0,87332.0,0.17265988]
[1731358260019,0.30525708,87335.0,87305.0,0.005]
[1731358260219,0.30525708,87335.0,87323.0,0.1]
[1731358260438,0.30525708,87335.0,87300.0,0.17765988]
[1731358260439,0.30525708,87324.0,87309.0,0.17765988]
[1731358260647,1.5,87323.0,87311.0,0.002]
[1731358260864,1.5,87323.0,87300.0,0.17265988]
[1731358261076,1.5,87323.0,87310.0,0.17265988]
[1731358261284,1.5,87323.0,87311.0,0.11994075]
[1731358261511,0.30525708,87312.0,87289.0,0.005]
[1731358261727,0.005,87318.0,87300.0,0.17265988]
[1731358261956,0.30525708,87314.0,87292.0,0.00508114]
[1731358262162,0.30525708,87314.0,87300.0,0.17265988]
[1731358262380,0.30525708,87314.0,87289.0,0.005]
[1731358262585,0.005,87318.0,87300.0,0.17265988]
[1731358262586,0.30525708,87303.0,87300.0,0.17265988]
[1731358262836,0.30525708,87303.0,87300.0,0.11994075]
[1731358263027,0.30525708,87303.0,87301.0,0.00104419]
[1731358263248,0.1056,87302.0,87301.0,0.00104419]
[1731358263463,0.1056,87302.0,87282.0,0.17265988]
[1731358263464,0.005,87291.0,87282.0,0.17265988]
[1731358263664,0.0457,87298.0,87283.0,0.004037]
[1731358263665,0.30525708,87284.0,87283.0,0.004037]
[1731358263897,0.31025708,87284.0,87283.0,0.00152187]
[1731358264020,0.31025708,87284.0,87266.0,0.17265988]
[1731358264021,0.005,87275.0,87266.0,0.17265988]
[1731358264252,0.37895708,87273.0,87267.0,0.17265988]
[1731358264507,0.35095708,87273.0,87267.0,0.17265988]
[1731358264852,0.37895708,87273.0,87252.0,0.005]
[1731358265043,0.37895708,87273.0,87251.0,0.17265988]
[1731358265044,0.005,87263.0,87251.0,0.17265988]
[1731358265249,0.028,87263.0,87251.0,0.17265988]
[1731358266537,0.30525708,87252.0,87247.0,0.17265988]
[1731358267153,0.1277,87273.0,87247.0,0.17265988]
[1731358267154,0.30525708,87264.0,87247.0,0.11994075]
[1731358267380,0.005,87269.0,87238.0,0.17265988]
[1731358267381,0.023,87244.0,87238.0,0.17265988]
[1731358267573,0.051,87247.0,87238.0,0.17265988]
[1731358268187,0.051,87247.0,87219.0,0.17265988]
[1731358268188,0.005,87241.0,87219.0,0.17265988]
[1731358268412,0.30525708,87232.0,87229.0,0.17265988]
[1731358268862,0.30525708,87232.0,87207.0,0.005]
[1731358269121,0.02366274,87227.0,87205.0,0.005]
[1731358269327,0.005,87205.0,87179.0,0.005]
[1731358269575,0.051,87195.0,87194.0,0.17265988]
[1731358269808,0.051,87195.0,87185.0,0.17265988]
[1731358269809,0.046,87195.0,87185.0,0.17265988]
[1731358270035,0.11994075,87226.0,87176.0,0.17765988]
[1731358270036,0.005,87200.0,87176.0,0.17765988]
[1731358270240,0.30525708,87181.0,87177.0,0.00153548]
[1731358270453,0.30525708,87181.0,87176.0,0.17765988]
[1731358270684,0.17265988,87180.0,87168.0,0.005]
[1731358270890,0.17265988,87180.0,87160.0,0.17265988]
[1731358270891,0.30525708,87170.0,87169.0,0.29260063]
[1731358271083,0.30525708,87181.0,87176.0,0.002]
[1731358271314,0.023,87179.0,87172.0,0.005]
[1731358271517,0.17265988,87178.0,87163.0,0.005]
[1731358271686,0.023,87177.0,87175.0,0.17265988]
[1731358271885,0.023,87192.0,87176.0,0.11994075]
[1731358272087,0.023,87180.0,87176.0,0.00302678]
[1731358272365,0.17265988,87197.0,87176.0,0.00156886]
[1731358272366,0.023,87191.0,87176.0,0.00156886]
[1731358272605,0.023,87191.0,87177.0,0.11994075]
[1731358272796,0.03348976,87273.0,87165.0,0.17265988]
[1731358272797,0.0829,87226.0,87193.0,0.007]
[1731358273012,0.0829,87226.0,87178.0,0.17995364]
[1731358273013,0.30525708,87214.0,87202.0,0.002]
[1731358273175,0.30525708,87214.0,87194.0,0.00122019]
[1731358273322,0.30525708,87214.0,87193.0,0.002]
[1731358273323,0.30525708,87214.0,87195.0,0.005]
[1731358273535,0.30525708,87214.0,87195.0,0.00121956]
[1731358273536,0.17265988,87213.0,87195.0,0.00121956]
[1731358273778,0.17265988,87213.0,87200.0,0.005]
[1731358274002,0.17265988,87213.0,87202.0,0.1]
[1731358274272,0.17265988,87213.0,87200.0,0.005]
[1731358274498,0.023,87212.0,87203.0,0.00121873]
[1731358274728,0.17265988,87212.0,87205.0,0.1]
[1731358274945,0.17265988,87212.0,87185.0,0.01]
[1731358274946,0.005,87203.0,87187.0,0.005]
[1731358275150,0.005,87186.0,87176.0,0.17265988]
[1731358275406,0.30525708,87177.0,87176.0,0.17265988]
[1731358275606,0.30525708,87177.0,87161.0,0.005]
[1731358275824,0.023,87187.0,87174.0,0.17265988]
[1731358276072,0.19565988,87187.0,87171.0,0.005]
[1731358276298,0.17265988,87203.0,87187.0,0.005]
[1731358276506,0.17265988,87203.0,87172.0,0.00229403]
[1731358276507,0.17265988,87192.0,87191.0,0.005]
[1731358276735,0.17265988,87203.0,87200.0,0.005]
[1731358277179,0.0529,87221.0,87200.0,0.005]
[1731358277422,0.0529,87221.0,87204.0,0.005]
[1731358277423,0.17265988,87212.0,87204.0,0.005]
[1731358277634,0.17265988,87212.0,87205.0,0.1]
[1731358277864,0.17265988,87212.0,87205.0,0.10124527]
[1731358278071,0.17265988,87211.0,87205.0,0.10124527]
[1731358278215,0.30525708,87213.0,87205.0,0.10124527]
[1731358278419,0.38765708,87226.0,87205.0,0.10124527]
[1731358278633,0.17265988,87221.0,87210.0,0.005]
[1731358278843,0.17265988,87237.0,87226.0,0.002]
[1731358279035,0.30525708,87260.0,87226.0,0.00929243]
[1731358279036,0.17265988,87239.0,87226.0,0.00929243]
[1731358279234,0.17265988,87239.0,87226.0,0.01053559]
[1731358279453,0.17265988,87239.0,87226.0,0.00973952]
[1731358279654,0.17265988,87239.0,87226.0,0.22818101]
[1731358279883,0.17265988,87239.0,87226.0,0.2296759]
[1731358280269,0.17265988,87247.0,87226.0,0.2346759]
[1731358281308,0.17265988,87247.0,87226.0,0.2396759]
[1731358282909,0.17265988,87238.0,87226.0,0.2396759]
[1731358283359,0.17265988,87237.0,87226.0,0.2859759]
[1731358285090,0.17265988,87237.0,87226.0,0.2396759]
[1731358285294,0.17265988,87247.0,87226.0,0.2396759]
[1731358285917,0.17265988,87247.0,87226.0,0.2386464]
[1731358286148,0.17265988,87238.0,87226.0,0.2336464]
[1731358286349,0.17265988,87238.0,87226.0,0.1286464]
[1731358286563,0.17265988,87238.0,87226.0,0.1216464]
[1731358286802,0.17265988,87247.0,87226.0,0.1216464]
[1731358286803,0.17265988,87247.0,87226.0,0.1266464]
[1731358287175,0.17265988,87246.0,87226.0,0.14684275]
[1731358287339,0.17265988,87236.0,87226.0,0.1366464]
[1731358287545,0.17265988,87236.0,87226.0,0.2366464]
[1731358288186,0.17265988,87246.0,87226.0,0.2366464]
[1731358288387,0.17265988,87246.0,87245.0,0.005]
[1731358288588,0.17265988,87246.0,87245.0,0.22494075]
[1731358288875,0.17265988,87270.0,87256.0,0.007]
[1731358289057,0.17265988,87270.0,87256.0,0.22694075]
[1731358289278,0.17265988,87270.0,87269.0,0.002]
[1731358289512,0.17265988,87270.0,87269.0,0.22194075]
[1731358289651,0.005,87288.0,87270.0,0.107]
[1731358289854,0.005,87288.0,87270.0,0.22694075]
[1731358290056,0.005,87288.0,87271.0,0.00178061]
[1731358290464,0.005,87288.0,87270.0,0.22694075]
[1731358290465,0.17265988,87282.0,87270.0,0.22694075]
[1731358290705,0.005,87288.0,87270.0,0.22694075]
[1731358290914,0.023,87287.0,87270.0,0.22494075]
[1731358291255,0.023,87287.0,87271.0,0.17265988]
[1731358291464,0.023,87287.0,87271.0,0.17444567]
[1731358291670,0.005,87298.0,87272.0,0.11994075]
[1731358291814,0.22155988,87311.0,87290.0,0.005]
[1731358292026,0.17265988,87311.0,87305.0,0.005]
[1731358292298,0.17265988,87310.0,87308.0,0.005]
[1731358292609,0.0008504,87315.0,87314.0,0.002]
[1731358292820,0.0008504,87315.0,87314.0,0.00929035]
[1731358293040,0.0008504,87315.0,87314.0,0.00856002]
[1731358293262,0.0008504,87315.0,87314.0,0.00156002]
[1731358293468,0.0008504,87315.0,87305.0,0.005]
[1731358293669,0.0008504,87315.0,87314.0,0.27765988]
[1731358293892,0.0008504,87315.0,87314.0,0.22647189]
[1731358294418,0.0008504,87315.0,87314.0,0.10153114]
[1731358294627,0.0008504,87315.0,87314.0,0.22876237]
[1731358295040,0.0008504,87315.0,87314.0,0.24076237]
[1731358295265,0.0008504,87315.0,87314.0,0.22847189]
[1731358295689,0.0008504,87315.0,87314.0,0.23576201]
[1731358296137,0.0008504,87315.0,87314.0,0.00882126]
[1731358296336,0.0008504,87315.0,87314.0,0.00332142]
[1731358296584,0.0008504,87315.0,87314.0,0.00132142]
[1731358297042,0.005,87313.0,87284.0,0.17265988]
[1731358297244,0.023,87311.0,87293.0,0.17265988]
[1731358297454,0.023,87309.0,87294.0,0.11994075]
[1731358297660,0.02529015,87309.0,87294.0,0.11994075]
[1731358297900,0.0008504,87315.0,87306.0,0.002]
[1731358298136,0.023,87308.0,87306.0,0.002]
[1731358298340,0.0008504,87315.0,87306.0,0.002]
[1731358298544,0.023,87312.0,87306.0,0.002]
[1731358298965,0.0008504,87315.0,87301.0,0.002]
[1731358299166,0.0008504,87315.0,87302.0,0.11994075]
[1731358299373,0.023,87312.0,87302.0,0.11994075]
[1731358299622,0.0008504,87315.0,87303.0,0.00498995]
[1731358299746,0.0008504,87315.0,87305.0,0.1]
[1731358299952,0.0008504,87315.0,87307.0,0.1]
[1731358300178,0.0008504,87315.0,87314.0,0.002]
[1731358300404,0.0008504,87315.0,87314.0,0.22194075]
[1731358300581,0.0008504,87315.0,87314.0,0.10689079]
[1731358300787,0.31110748,87315.0,87314.0,0.00489079]
[1731358301232,0.31110748,87315.0,87298.0,0.002]
[1731358301479,0.02529015,87314.0,87299.0,0.1]
[1731358301911,0.023,87312.0,87302.0,0.002]
[1731358302131,0.00229015,87312.0,87303.0,0.11994075]
[1731358302334,0.0008504,87315.0,87308.0,0.1]
[1731358302554,0.0008504,87315.0,87303.0,0.00652389]
[1731358302555,0.0008504,87315.0,87312.0,0.1]
[1731358302730,0.0008504,87315.0,87314.0,0.002]
[1731358302942,0.0008504,87315.0,87314.0,0.22194075]
[1731358303112,0.0008504,87315.0,87314.0,0.22682112]
[1731358304093,0.0008504,87315.0,87314.0,0.22834043]
[1731358304571,0.0008504,87315.0,87314.0,0.23334043]
[1731358305033,0.0008504,87315.0,87314.0,0.24063053]
[1731358305247,0.17265988,87332.0,87324.0,0.002]
[1731358305461,0.17265988,87332.0,87329.0,0.105]
[1731358305683,0.17265988,87332.0,87329.0,0.11994075]
[1731358306107,0.30525708,87336.0,87329.0,0.11994075]
[1731358306735,0.30525708,87336.0,87330.0,0.00484912]
[1731358306944,0.17765988,87350.0,87330.0,0.00484912]
[1731358306945,0.30525708,87347.0,87334.0,0.002]
[1731358307095,0.0238503,87335.0,87330.0,0.00484912]
[1731358307304,0.023,87333.0,87330.0,0.00484912]
[1731358307515,0.005,87331.0,87330.0,0.00484912]
[1731358307710,0.005,87331.0,87312.0,0.002]
[1731358307711,0.005,87325.0,87312.0,0.17265988]
[1731358307882,0.023,87323.0,87314.0,0.002]
[1731358308236,0.31025708,87325.0,87314.0,0.002]
[1731358308237,0.023,87321.0,87315.0,0.00494168]
[1731358308437,0.023,87319.0,87315.0,0.00494168]
[1731358308564,0.023,87319.0,87314.0,0.002]
[1731358308565,0.023,87324.0,87316.0,0.11994075]
[1731358308977,0.0058503,87335.0,87316.0,0.11994075]
[1731358308978,0.0008503,87335.0,87317.0,0.10722938]
[1731358309185,0.023,87324.0,87318.0,0.11994075]
[1731358309385,0.02529015,87324.0,87317.0,0.00493906]
[1731358309636,0.02529015,87324.0,87319.0,0.00493384]
[1731358309824,0.02529015,87324.0,87310.0,0.002]
[1731358310068,0.02529015,87324.0,87308.0,0.1]
[1731358310276,0.02529015,87324.0,87311.0,0.00603137]
[1731358310483,0.19795003,87324.0,87312.0,0.00495213]
[1731358311272,0.023,87324.0,87313.0,0.11994075]
[1731358311464,0.023,87324.0,87314.0,0.00107425]
[1731358311465,0.023,87322.0,87314.0,0.00107425]
[1731358311738,0.023,87322.0,87315.0,0.11994075]
[1731358311948,0.028,87315.0,87314.0,0.00028837]
[1731358312178,0.03029015,87315.0,87314.0,0.00028837]
[1731358312382,0.03029015,87315.0,87296.0,0.002]
[1731358312589,0.023,87309.0,87297.0,0.11994075]
[1731358312796,0.023,87307.0,87297.0,0.11994075]
[1731358313245,0.023,87298.0,87293.0,0.002]
[1731358313496,0.023,87296.0,87293.0,0.002]
[1731358313714,0.022799,87296.0,87293.0,0.002]
[1731358313888,0.30525708,87310.0,87293.0,0.002]
[1731358314143,0.17265988,87304.0,87293.0,0.002]
[1731358314349,0.00229015,87309.0,87294.0,0.11994075]
[1731358314563,0.30525708,87310.0,87307.0,0.002]
[1731358314806,0.00229015,87309.0,87296.0,0.002]
[1731358315025,0.00229015,87309.0,87297.0,0.11994075]
[1731358315242,0.17265988,87305.0,87297.0,0.00459172]
[1731358315466,0.00229015,87304.0,87297.0,0.00459172]
[1731358315707,0.023,87308.0,87298.0,0.11994075]
[1731358315899,0.023,87306.0,87298.0,0.11994075]
[1731358316100,0.00229015,87305.0,87298.0,0.11994075]
[1731358316215,0.00229015,87305.0,87299.0,0.00457444]
[1731358316216,0.023,87304.0,87299.0,0.00457444]
[1731358316419,0.023,87302.0,87299.0,0.00457444]
[1731358316642,0.023,87300.0,87298.0,0.002]
[1731358316869,0.023,87307.0,87298.0,0.12194075]
[1731358317095,0.023,87307.0,87286.0,0.1]
[1731358317096,0.005,87331.0,87303.0,0.002]
[1731358317228,0.0838503,87335.0,87305.0,0.1]
[1731358317229,0.17265988,87308.0,87305.0,0.1]
[1731358317457,0.00229015,87322.0,87303.0,0.002]
[1731358317458,0.00229015,87322.0,87306.0,0.12444498]
[1731358317656,0.17265988,87314.0,87306.0,0.11994075]
[1731358317863,0.00229015,87322.0,87307.0,0.00452127]
[1731358318069,0.00229015,87322.0,87303.0,0.002]
[1731358318070,0.17265988,87314.0,87303.0,0.002]
[1731358318287,0.21946754,87323.0,87304.0,0.00453831]
[1731358318288,0.00229015,87313.0,87304.0,0.00453831]
[1731358318701,0.023,87314.0,87308.0,0.17265988]
[1731358318924,0.17265988,87313.0,87295.0,0.002]
[1731358319123,0.00229015,87322.0,87309.0,0.00452126]
[1731358319357,0.00229015,87322.0,87310.0,0.11994075]
[1731358319850,0.17265988,87323.0,87310.0,0.11994075]
[1731358320062,0.02462715,87322.0,87310.0,0.11994075]
[1731358320523,3.0,87324.0,87315.0,0.1]
[1731358320758,0.17265988,87323.0,87317.0,0.1]
[1731358320984,0.17265988,87323.0,87319.0,0.1]
[1731358321194,0.17265988,87323.0,87321.0,0.1]
[1731358321438,2.99949912,87324.0,87322.0,0.11994075]
[1731358321640,0.17265988,87322.0,87311.0,0.002]
[1731358321890,2.99949912,87324.0,87299.0,0.17265988]
[1731358321891,0.005,87320.0,87299.0,0.17265988]
[1731358322102,0.47791696,87323.0,87286.0,0.17265988]
[1731358322103,0.023,87313.0,87286.0,0.17265988]
[1731358322341,0.023,87311.0,87295.0,0.17265988]
[1731358322570,0.023,87311.0,87296.0,0.11994075]
[1731358322571,0.023,87309.0,87296.0,0.11994075]
[1731358322790,0.023,87307.0,87296.0,0.12392853]
[1731358323017,0.17265988,87311.0,87296.0,0.00398778]
[1731358323018,0.023,87301.0,87296.0,0.00398778]
[1731358323295,0.023,87297.0,87296.0,0.00346357]
[1731358323522,0.005,87292.0,87270.0,0.0036998]
[1731358323772,0.023,87278.0,87270.0,0.0475048]
[1731358323971,0.005,87275.0,87270.0,0.0016998]
[1731358324176,0.005,87271.0,87270.0,0.0016998]
[1731358324385,0.1495679,87271.0,87270.0,0.0016998]
[1731358324640,0.005,87276.0,87270.0,0.0016998]
[1731358324879,0.11994075,87275.0,87270.0,0.0016998]
[1731358325101,0.11994075,87275.0,87254.0,0.17265988]
[1731358325102,0.30525708,87261.0,87254.0,0.17265988]
[1731358325311,0.30525708,87261.0,87245.0,0.17265988]
[1731358325576,0.30525708,87245.0,87240.0,0.045825]
[1731358325778,0.0805,87255.0,87237.0,0.002]
[1731358325996,0.30525708,87245.0,87239.0,0.002]
[1731358326246,0.30525708,87245.0,87236.0,0.002]
[1731358326479,0.005,87250.0,87236.0,0.002]
[1731358326684,0.0805,87270.0,87236.0,0.002]
[1731358326685,0.17265988,87255.0,87237.0,0.11994075]
[1731358326885,0.17265988,87246.0,87237.0,0.11994075]
[1731358327109,0.023,87254.0,87237.0,0.11994075]
[1731358327312,0.023,87254.0,87230.0,0.002]
[1731358327313,0.47791696,87245.0,87230.0,0.002]
[1731358327641,0.023,87244.0,87231.0,0.11994075]
[1731358327839,0.05093241,87310.0,87231.0,0.11994075]
[1731358327840,0.17265988,87243.0,87231.0,0.11994075]
[1731358328061,0.17265988,87243.0,87232.0,0.00387423]
[1731358328269,0.023,87255.0,87233.0,0.11994075]
[1731358328482,0.17265988,87242.0,87232.0,0.00387423]
[1731358328733,0.17265988,87238.0,87235.0,0.1]
[1731358328935,0.17265988,87256.0,87233.0,0.11994075]
[1731358328936,0.30525708,87237.0,87233.0,0.11994075]
[1731358329143,0.023,87255.0,87233.0,0.11994075]
[1731358329291,0.17265988,87246.0,87233.0,0.11994075]
[1731358330045,0.17265988,87246.0,87228.0,0.005]
[1731358330046,0.17265988,87237.0,87228.0,0.005]
[1731358330271,0.30525708,87234.0,87227.0,0.0017018]
[1731358330498,0.023,87233.0,87229.0,0.00393803]
[1731358330699,0.30525708,87234.0,87230.0,0.11994075]
[1731358330918,0.0479,87261.0,87230.0,0.11994075]
[1731358330919,0.17265988,87250.0,87231.0,0.005]
[1731358331125,0.17265988,87241.0,87232.0,0.11994075]
[1731358331335,0.17265988,87241.0,87235.0,0.002]
[1731358331776,0.17265988,87246.0,87236.0,0.11994075]
[1731358331980,0.17265988,87258.0,87248.0,0.005]
[1731358332198,0.17265988,87258.0,87256.0,0.005]
[1731358332853,0.30525708,87271.0,87256.0,0.005]
[1731358333085,0.04584478,87274.0,87243.0,0.005]
[1731358333086,0.47791696,87257.0,87245.0,0.002]
[1731358333298,0.30525708,87257.0,87245.0,0.002]
[1731358333941,0.30525708,87257.0,87235.0,0.002]
[1731358333942,0.17265988,87256.0,87235.0,0.002]
[1731358334162,0.17265988,87256.0,87224.0,0.1]
[1731358334163,0.30525708,87246.0,87227.0,0.0037018]
[1731358334376,0.30525708,87234.0,87228.0,0.11994075]
[1731358335054,0.17265988,87233.0,87227.0,0.0017018]
[1731358335251,0.17265988,87229.0,87227.0,0.0017018]
[1731358335478,0.30525708,87234.0,87227.0,0.0017018]
[1731358335479,0.023,87233.0,87227.0,0.0017018]
[1731358335909,0.17265988,87233.0,87227.0,0.0017018]
[1731358336122,0.30525708,87234.0,87227.0,0.0017018]
[1731358336352,0.005,87244.0,87227.0,0.0017018]
[1731358336566,0.04642589,87240.0,87231.0,0.005]
[1731358336788,0.17265988,87256.0,87229.0,0.1]
[1731358336789,0.17265988,87244.0,87233.0,0.005]
[1731358337000,0.17265988,87244.0,87232.0,0.11994075]
[1731358337205,0.17265988,87244.0,87228.0,0.0016988]
[1731358337206,0.30525708,87235.0,87228.0,0.0016988]
[1731358337829,0.005,87245.0,87228.0,0.0016988]
[1731358338050,0.21851428,87244.0,87229.0,0.11994075]
[1731358338270,0.17265988,87244.0,87230.0,0.1]
[1731358338491,0.17265988,87244.0,87231.0,0.11994075]
[1731358338996,0.17265988,87244.0,87230.0,0.1]